bitfinex-derivatives/quotes_SOLF0:USTF0_20240816
["timestamp","ask_amount","ask_price","bid_price","bid_amount"]
[1723813190419,1.2727,139.19,139.08,43.12]
[1723813190621,1.2727,139.19,139.09,8.836]
[1723813190820,0.05168842,139.1,139.09,12.42411398]
[1723813191128,43.12,139.22,139.09,12.42411398]
[1723813191328,43.12,139.22,139.11,43.12]
[1723813191824,0.05440603,139.17,139.11,43.12]
[1723813192425,0.05440603,139.17,139.16,3.5918]
[1723813193020,0.05440603,139.17,139.16,7.24781081]
[1723813193217,44.3927,139.24,139.19,3.5913]
[1723813193525,43.12,139.2,139.15,0.04944444]
[1723813193718,43.12,139.2,139.12,6.14]
[1723813194127,43.12,139.18,139.1,1.2706]
[1723813194425,43.12,139.18,139.12,3.5929]
[1723813194621,0.04636929,139.17,139.15,0.05431913]
[1723813199127,0.04636929,139.17,139.16,3.66367533]
[1723813199328,0.04636929,139.17,139.15,0.05431913]
[1723813199529,0.04636929,139.17,139.16,3.60442161]
[1723813200228,6.14,139.23,139.15,0.05431913]
[1723813200421,44.3927,139.24,139.15,6.19431913]
[1723813200822,43.12,139.22,139.16,3.63710561]
[1723813201136,43.12,139.22,139.14,6.14]
[1723813201829,0.0458009,139.19,139.17,0.05020781]
[1723813202423,0.0458009,139.19,139.13,6.14]
[1723813202424,43.12,139.18,139.13,6.14]
[1723813202729,43.12,139.18,139.1,1.2706]
[1723813202920,43.12,139.18,139.1,4.8642]
[1723813202921,3.5922,139.16,139.1,4.8642]
[1723813203128,43.12,139.18,139.1,1.2706]
[1723813203350,43.12,139.15,139.1,1.2706]
[1723813203524,43.12,139.15,139.07,6.14]
[1723813203726,43.12,139.15,139.07,3.63572987]
[1723813203928,43.12,139.13,139.11,0.0527616]
[1723813204228,43.12,139.13,139.05,4.883599]
[1723813204434,43.12,139.09,139.02,6.14]
[1723813204728,43.12,139.09,139.01,3.58149205]
[1723813204925,43.12,139.09,138.99,6.14]
[1723813205127,43.12,139.09,138.99,9.73657807]
[1723813205526,0.04755701,139.08,139.05,0.05287851]
[1723813206332,0.04755701,139.08,138.99,9.73657807]
[1723813206528,3.5949,139.06,139.0,5.5962]
[1723813206836,3.5949,139.06,139.0,9.21468871]
[1723813207141,3.5949,139.06,139.0,5.5962]
[1723813207429,43.12,139.03,139.0,2.0]
[1723813207736,1.2866,139.05,139.0,2.0]
[1723813207931,39.5384,139.03,139.0,2.0]
[1723813208236,35.943,139.01,138.89,49.26]
[1723813208538,28.762,138.99,138.89,6.14]
[1723813208725,28.762,138.99,138.89,9.74214043]
[1723813208930,21.585,138.99,138.89,9.74214043]
[1723813209132,14.408,138.99,138.89,9.74214043]
[1723813209335,7.231,138.99,138.94,0.04964215]
[1723813209633,43.12,138.97,138.94,0.04964215]
[1723813209940,35.943,138.97,138.94,0.04964215]
[1723813210131,3.5974,138.96,138.94,0.04964215]
[1723813210330,21.589,138.97,138.88,4.0]
[1723813210527,0.05391419,138.98,138.84,6.14]
[1723813210528,43.12,138.94,138.84,6.14]
[1723813210737,49.26,138.94,138.84,43.12]
[1723813211029,3.5968,138.98,138.86,43.12]
[1723813211239,35.943,139.0,138.9,43.12]
[1723813211531,6.12,139.01,138.88,2.63229101]
[1723813211752,43.12,139.04,138.94,43.12]
[1723813211937,4.68286059,139.03,138.94,46.70736618]
[1723813212234,0.05373565,138.96,138.95,3.5975]
[1723813212532,6.12,139.08,138.98,0.04980999]
[1723813212735,6.12,139.08,139.0,3.5962]
[1723813212934,7.1829,139.19,139.0,43.12]
[1723813213133,43.12,139.13,139.0,49.24]
[1723813213333,4.68701846,139.12,139.0,49.24]
[1723813213539,4.68701846,139.11,139.04,43.12]
[1723813213737,6.12,139.13,139.05,3.53446357]
[1723813214033,0.0477139,139.08,139.05,4.96264721]
[1723813214332,0.0477139,139.08,139.06,3.5946]
[1723813214836,49.24,139.17,139.06,43.12]
[1723813215031,49.24,139.17,139.09,3.5937]
[1723813215535,43.12,139.15,139.05,5.0515704]
[1723813215734,6.12,139.17,139.03,6.12]
[1723813215735,43.12,139.12,139.03,6.12]
[1723813216140,43.12,139.1,139.01,1.3361]
[1723813216434,43.12,139.1,139.09,0.05004154]
[1723813216637,43.12,139.1,139.01,5.01434324]
[1723813216638,3.5941,139.09,139.03,3.5954]
[1723813216838,43.12,139.1,139.01,1.3361]
[1723813217230,3.5942,139.08,139.02,3.5955]
[1723813217429,43.12,139.1,139.01,1.3361]
[1723813217430,43.12,139.1,139.01,4.98927854]
[1723813217636,6.12,139.11,139.01,1.3361]
[1723813217940,0.0510813,139.07,139.04,0.05312568]
[1723813218331,3.5933,139.12,139.05,3.5947]
[1723813218532,0.04681811,139.07,139.05,3.5947]
[1723813218934,57.84,139.14,139.02,51.72]
[1723813219137,4.69323152,139.13,139.02,51.72]
[1723813219341,0.05492493,139.07,139.05,0.050224]
[1723813219940,3.5937,139.1,139.04,3.585224]
[1723813220440,0.05453677,139.07,139.01,1.3361]
[1723813221032,0.05453677,139.07,139.03,3.5952]
[1723813221337,0.05453677,139.07,139.02,3.57646646]
[1723813221537,0.05453677,139.07,139.03,0.05444878]
[1723813221842,0.05453677,139.07,139.04,51.72]
[1723813222036,57.84,139.17,139.05,6.12]
[1723813222231,3.5925,139.15,139.05,6.12]
[1723813222635,57.84,139.17,139.06,51.72]
[1723813222862,6.12,139.17,139.06,51.72]
[1723813223138,51.72,139.19,139.06,51.72]
[1723813223342,3.5922,139.16,139.1,3.5934]
[1723813223541,0.04866465,139.13,139.1,3.6455052]
[1723813224131,0.04866465,139.13,139.11,3.5933]
[1723813225641,0.04866465,139.13,139.1,3.6456052]
[1723813226043,0.04866465,139.13,139.1,0.0521052]
[1723813226642,3.64166465,139.13,139.1,0.0521052]
[1723813227038,3.5931,139.12,139.1,0.0521052]
[1723813227244,0.04866465,139.13,139.1,0.0521052]
[1723813227846,0.04866465,139.13,139.12,3.5931]
[1723813228545,0.04866465,139.13,139.1,0.0521052]
[1723813229849,51.72,139.12,139.1,0.0521052]
[1723813231844,3.5934,139.11,139.1,0.0521052]
[1723813232043,51.72,139.12,139.06,3.5946]
[1723813232350,51.72,139.12,139.04,1.2739]
[1723813232547,51.72,139.12,139.05,3.5947]
[1723813232748,51.72,139.12,139.04,1.2739]
[1723813233350,0.05088098,139.09,139.07,0.04615061]
[1723813233749,0.05088098,139.09,139.08,3.5941]
[1723813235546,0.05088098,139.09,139.07,3.64045061]
[1723813235952,0.05088098,139.09,139.07,0.04615061]
[1723813236447,3.5941,139.08,139.07,0.04615061]
[1723813236648,0.05088098,139.09,139.07,0.04615061]
[1723813237253,3.5941,139.08,139.07,0.04615061]
[1723813237553,51.72,139.08,138.98,1.3479]
[1723813237756,51.72,139.05,138.98,1.3479]
[1723813237951,6.12,139.07,138.98,1.3479]
[1723813237952,43.16,139.03,138.98,1.3479]
[1723813238152,3.5959,139.02,138.97,3.5968]
[1723813238347,43.16,139.03,138.96,1.3498]
[1723813238548,43.16,139.03,138.99,3.5963]
[1723813238752,46.7555,139.03,138.96,1.3498]
[1723813239160,0.04741854,139.01,138.98,0.04636588]
[1723813239554,43.16,139.08,138.99,43.16]
[1723813239753,43.16,139.08,139.0,2.5944]
[1723813240158,43.16,139.08,139.03,3.5953]
[1723813240750,46.7542,139.08,139.03,3.5953]
[1723813240960,43.16,139.08,139.03,3.5953]
[1723813241151,43.16,139.08,139.04,0.05396979]
[1723813241152,0.04543879,139.07,139.04,0.05396979]
[1723813242262,0.04543879,139.07,139.04,3.64916979]
[1723813242656,0.04543879,139.07,139.04,0.05396979]
[1723813243259,3.63993879,139.07,139.04,0.05396979]
[1723813244064,0.04543879,139.07,139.04,0.05396979]
[1723813244464,3.5948,139.06,139.04,0.05396979]
[1723813244660,43.16,139.06,139.04,0.05396979]
[1723813244964,3.5957,139.02,138.94,1.27]
[1723813245167,3.5957,139.02,138.95,3.5975]
[1723813245168,35.983,139.0,138.95,3.5975]
[1723813245364,9.7157,139.02,138.95,3.5975]
[1723813245561,35.983,139.01,138.95,3.5975]
[1723813245760,28.806,139.01,138.95,3.5975]
[1723813245964,9.7157,139.02,138.95,3.5975]
[1723813246165,9.7157,139.02,138.94,1.27]
[1723813246166,49.28,139.02,138.94,1.27]
[1723813246360,0.05232379,138.99,138.97,0.04841792]
[1723813248385,3.5944,139.07,138.99,3.5962]
[1723813248585,43.16,139.06,138.97,0.04841792]
[1723813248785,43.16,139.04,138.97,0.04841792]
[1723813249085,43.16,139.02,138.92,2.673]
[1723813249586,46.7557,139.02,138.94,3.5977]
[1723813249785,43.16,139.02,138.92,2.653]
[1723813249982,6.12,139.03,138.93,43.16]
[1723813250189,6.12,139.03,138.96,0.0505543]
[1723813250190,0.05148331,138.98,138.96,0.0505543]
[1723813250582,9.7157,139.03,138.96,0.0505543]
[1723813250786,3.5957,139.02,138.96,0.0505543]
[1723813250993,6.12,139.03,138.96,0.0505543]
[1723813251287,35.983,138.98,138.96,0.0505543]
[1723813251580,28.806,138.98,138.96,0.0505543]
[1723813251785,21.629,138.98,138.96,0.0505543]
[1723813251987,48.2497,138.99,138.96,0.0505543]
[1723813252179,1.2661,139.01,138.96,0.0505543]
[1723813252377,57.95,139.02,138.96,0.0505543]
[1723813252581,6.12,139.03,138.96,0.0505543]
[1723813252782,0.05286845,139.0,138.96,0.0505543]
[1723813252986,0.05286845,139.0,138.92,1.3141]
[1723813253191,3.64906845,139.0,138.97,0.05133274]
[1723813253487,3.64906845,139.0,138.89,6.12]
[1723813253488,51.83,138.98,138.85,51.83]
[1723813253787,50.773,138.98,138.89,3.5988]
[1723813253987,43.596,138.98,138.89,3.5988]
[1723813254178,36.419,138.98,138.89,3.5988]
[1723813254378,36.419,138.98,138.85,55.38545196]
[1723813254379,41.33898,138.95,138.85,3.55545196]
[1723813254587,34.20886981,138.95,138.92,0.04812735]
[1723813254780,26.98498,138.95,138.84,2.5871]
[1723813254977,3.65030231,138.95,138.92,0.05452207]
[1723813255197,48.30330231,138.97,138.92,0.05452207]
[1723813255377,6.12,138.97,138.88,3.5601283]
[1723813255587,3.5982,138.93,138.88,3.5601283]
[1723813255885,51.83,138.92,138.84,1.3322]
[1723813256184,44.653,138.9,138.8,6.12]
[1723813256387,0.04590987,138.89,138.87,0.04616798]
[1723813256585,48.29750987,138.91,138.87,0.04616798]
[1723813256887,41.12050987,138.91,138.84,3.6003]
[1723813257088,33.94350987,138.91,138.84,3.6003]
[1723813257389,6.12,138.92,138.81,53.0993]
[1723813257589,50.773,138.94,138.81,56.62313805]
[1723813257780,43.596,138.94,138.86,0.04647661]
[1723813257979,36.47225397,138.94,138.86,0.04647661]
[1723813258193,14.95125397,138.94,138.86,0.04647661]
[1723813258387,44.653,138.89,138.75,1.2549]
[1723813258691,51.83,138.94,138.78,51.83]
[1723813258692,6.12,138.88,138.78,51.83]
[1723813258895,6.12,138.9,138.79,1.2901]
[1723813259205,51.03798,138.93,138.81,51.83]
[1723813259386,49.98098,138.93,138.82,3.56814376]
[1723813259587,42.80398,138.93,138.81,51.83]
[1723813259787,35.62698,138.93,138.81,51.83]
[1723813259989,28.44998,138.93,138.81,51.83]
[1723813260184,17.76101832,138.93,138.86,0.05495561]
[1723813260692,3.5985,138.92,138.86,0.05495561]
[1723813260884,3.67430638,138.96,138.86,0.05495561]
[1723813261191,37.61549,138.93,138.86,0.05495561]
[1723813261391,6.12,138.94,138.84,3.61564703]
[1723813261392,0.04753507,138.92,138.84,3.61564703]
[1723813261592,51.83,138.91,138.88,0.0530489]
[1723813261788,57.95,138.94,138.79,12.21402651]
[1723813261990,3.5988,138.9,138.83,3.6004]
[1723813262292,3.67214714,138.96,138.82,3.59493242]
[1723813262486,51.83,138.94,138.83,51.83]
[1723813262690,44.653,138.94,138.83,51.83]
[1723813262988,37.476,138.94,138.83,51.83]
[1723813263181,23.18907399,138.94,138.87,0.04835643]
[1723813263388,16.01207399,138.94,138.87,0.04835643]
[1723813263593,12.43327399,138.94,138.87,0.04835643]
[1723813263785,5.25627399,138.94,138.87,0.04835643]
[1723813263990,4.19927399,138.96,138.87,0.04835643]
[1723813264185,4.19927399,138.96,138.87,3.61269828]
[1723813264386,51.83,138.98,138.85,51.83]
[1723813264387,0.0538032,138.93,138.88,1.2623]
[1723813264589,3.5972,138.97,138.91,0.05388148]
[1723813264786,50.8408032,138.98,138.91,0.05388148]
[1723813264993,50.8408032,138.98,138.91,0.03388148]
[1723813265195,44.7208032,138.98,138.91,0.03388148]
[1723813265797,75.44103565,138.99,138.94,3.5978]
[1723813266088,57.95,139.05,138.92,51.83]
[1723813266310,0.02258283,138.96,138.95,3.5973]
[1723813266593,0.02258283,138.96,138.92,51.83]
[1723813266594,3.5954,139.04,138.92,51.83]
[1723813266793,51.83,139.05,138.97,0.05439632]
[1723813267188,6.12,139.06,138.97,3.60126629]
[1723813267383,6.12,139.06,138.97,0.05439632]
[1723813267589,0.02258283,139.02,138.97,0.05439632]
[1723813267789,0.02258283,139.02,138.96,9.68737627]
[1723813268293,0.02258283,139.02,138.98,0.05024552]
[1723813269889,6.12,139.1,138.99,51.83]
[1723813270091,51.83,139.12,138.99,51.83]
[1723813270892,51.83,139.08,139.04,0.04626056]
[1723813271103,51.83,139.1,138.98,57.95]
[1723813271293,55.4233,139.12,139.05,0.04635776]
[1723813271693,3.5934,139.11,139.05,0.04635776]
[1723813271891,3.57554131,139.11,139.05,0.04635776]
[1723813272099,51.83,139.1,139.05,0.04635776]
[1723813272291,3.5936,139.11,139.05,0.04635776]
[1723813272699,61.55178183,139.14,139.05,0.04635776]
[1723813272895,61.55178183,139.14,139.06,3.5944]
[1723813272896,3.5931,139.13,139.06,3.5944]
[1723813273100,3.5931,139.13,139.08,0.04774944]
[1723813273305,51.83,139.17,139.08,0.04774944]
[1723813273604,51.83,139.19,139.08,51.87774944]
[1723813273798,1.1618,139.2,139.09,1.3519]
[1723813273989,43.12,139.2,139.09,44.4719]
[1723813274193,6.12,139.21,139.12,43.12]
[1723813274396,6.12,139.21,139.12,49.24]
[1723813274604,43.12,139.22,139.16,3.592]
[1723813274914,111.38819206,139.24,139.16,3.592]
[1723813275102,3.5907,139.22,139.16,3.592]
[1723813275299,3.5907,139.22,139.14,43.12]
[1723813275699,111.38819206,139.24,139.19,3.5912]
[1723813276005,111.38819206,139.24,139.15,51.7]
[1723813276006,68.26819206,139.24,139.15,51.7]
[1723813276203,68.26819206,139.24,139.17,6.16679205]
[1723813276797,68.26819206,139.24,139.2,3.5909]
[1723813277300,6.12,139.28,139.2,3.5909]
[1723813277301,3.5897,139.26,139.2,3.5909]
[1723813277896,3.5898,139.25,139.19,3.5913]
[1723813278095,51.7,139.26,139.18,1.3786]
[1723813278500,3.5903,139.23,139.22,0.05466864]
[1723813278706,51.7,139.24,139.1,51.7]
[1723813278908,51.7,139.21,139.13,8.7095]
[1723813279100,51.7,139.21,139.16,3.5921]
[1723813279504,51.7,139.24,139.19,3.5911]
[1723813279701,51.64,139.24,139.13,59.0689]
[1723813279905,51.7,139.26,139.14,1.3025]
[1723813280211,51.7,139.26,139.2,0.05336781]
[1723813280212,0.04920038,139.23,139.2,0.05336781]
[1723813280507,0.04920038,139.23,139.21,3.5906]
[1723813281005,57.8,139.29,139.23,3.5902]
[1723813281200,57.8,139.29,139.2,0.05491255]
[1723813281399,7.50041759,139.4,139.2,0.05491255]
[1723813281706,129.4273,139.49,139.2,0.05491255]
[1723813281707,52.8821,139.34,139.2,0.05491255]
[1723813281900,52.8821,139.34,139.19,55.25943159]
[1723813281901,51.7,139.31,139.19,55.25943159]
[1723813282602,51.7,139.29,139.17,1.2525]
[1723813282795,6.1,139.28,139.17,1.2525]
[1723813283000,3.5893,139.27,139.17,1.2525]
[1723813283203,28.72,139.26,139.17,1.2525]
[1723813283398,38.44692258,139.26,139.15,51.7]
[1723813283706,1.3187,139.25,139.13,1.2489]
[1723813283901,3.5905,139.23,139.17,3.5918]
[1723813284104,3.9655,139.25,139.2,0.05429113]
[1723813284505,6.1,139.24,139.2,0.05429113]
[1723813284801,3.9655,139.25,139.13,1.2489]
[1723813285005,3.9655,139.25,139.21,3.5906]
[1723813285305,3.9655,139.25,139.21,3.64079957]
[1723813285606,6.1,139.24,139.21,0.05019957]
[1723813285803,6.1,139.23,139.21,0.05019957]
[1723813286712,6.1,139.23,139.14,1.3025]
[1723813286916,51.7,139.22,139.1,51.7]
[1723813287123,3.5917,139.18,139.08,4.0112]
[1723813287311,6.1,139.17,139.08,4.0112]
[1723813288116,0.05019957,139.14,139.11,0.04595964]
[1723813288415,6.1,139.13,139.11,0.04595964]
[1723813288915,6.1,139.12,139.11,0.04595964]
[1723813289109,6.1,139.12,139.06,3.5946]
[1723813289316,80.47019957,139.14,139.02,55.3121229]
[1723813289515,6.1,139.11,139.02,55.3121229]
[1723813289717,6.1,139.1,139.02,55.3121229]
[1723813290017,6.1,139.09,139.02,55.3121229]
[1723813290224,28.77019957,139.14,139.02,55.3121229]
[1723813290512,6.1,139.13,139.02,55.3121229]
[1723813290705,3.5929,139.13,139.07,3.5944]
[1723813290907,6.1,139.12,139.07,3.5944]
[1723813291111,0.05353235,139.07,139.04,0.05202642]
[1723813291821,6.1,139.07,139.02,55.3121229]
[1723813292312,6.1,139.07,139.0,3.975]
[1723813292622,6.1,139.06,139.04,0.04867677]
[1723813292814,0.04571785,139.07,139.04,0.04867677]
[1723813293318,6.14571785,139.07,139.06,3.5947]
[1723813293813,0.04571785,139.07,139.06,3.5947]
[1723813294020,6.1,139.12,139.06,3.63883326]
[1723813294216,1.3654,139.19,139.07,53.0382]
[1723813294410,1.3654,139.19,139.1,51.7]
[1723813294611,6.1,139.18,139.1,51.7]
[1723813295013,6.1,139.17,139.1,51.7]
[1723813295219,1.3654,139.19,139.1,51.7]
[1723813295220,6.1,139.18,139.1,51.7]
[1723813295515,3.5906,139.22,139.12,51.7]
[1723813295730,0.04923512,139.15,139.13,0.04920668]
[1723813295914,6.1,139.24,139.16,51.7]
[1723813296130,3.5905,139.23,139.16,3.5921]
[1723813296321,3.5905,139.23,139.14,3.61835202]
[1723813296518,3.5905,139.23,139.13,57.8]
[1723813296519,9.69,139.24,139.13,57.8]
[1723813296817,1.3339,139.25,139.15,51.7]
[1723813297022,4.9237,139.25,139.18,3.5914]
[1723813297319,4.9237,139.25,139.15,51.7]
[1723813297919,4.9237,139.25,139.17,0.0527245]
[1723813298116,3.5901,139.24,139.17,0.0527245]
[1723813298315,1.3339,139.25,139.17,0.0527245]
[1723813298625,3.5904,139.23,139.17,0.0527245]
[1723813299018,1.3339,139.25,139.17,0.0527245]
[1723813299214,1.3339,139.25,139.18,3.5915]
[1723813299423,1.3339,139.25,139.17,0.0527245]
[1723813299614,3.5894,139.27,139.17,51.7527245]
[1723813299830,6.1,139.28,139.17,51.7]
[1723813300013,6.1,139.29,139.17,51.7]
[1723813300214,9.6889,139.29,139.22,3.5904]
[1723813300417,9.6889,139.29,139.21,0.04601671]
[1723813300816,6.1,139.29,139.21,0.04601671]
[1723813301114,6.1,139.29,139.2,51.7]
[1723813301320,9.6889,139.29,139.23,3.5901]
[1723813301521,3.5889,139.29,139.23,3.5901]
[1723813301720,3.5889,139.29,139.24,0.04626105]
[1723813302225,3.5889,139.29,139.24,3.63616105]
[1723813302618,53.0722,139.3,139.24,0.04626105]
[1723813303028,3.5894,139.27,139.24,0.04626105]
[1723813303223,53.0722,139.3,139.24,0.04626105]
[1723813303726,53.0722,139.3,139.23,3.5903]
[1723813303727,51.7,139.27,139.23,3.5903]
[1723813303921,51.7,139.27,139.15,6.1]
[1723813304134,51.7,139.25,139.14,1.3688]
[1723813304328,55.26866274,139.25,139.14,1.3688]
[1723813304530,51.7,139.25,139.14,1.3688]
[1723813304731,6.1,139.26,139.14,1.3688]
[1723813304935,6.1,139.25,139.14,1.3688]
[1723813305636,6.1,139.25,139.18,0.04928756]
[1723813305826,3.63846729,139.21,139.18,0.04928756]
[1723813306023,0.04746729,139.21,139.18,0.04928756]
[1723813306427,3.5915,139.19,139.14,3.5924]
[1723813306628,6.1,139.2,139.1,56.56119319]
[1723813306925,6.1,139.2,139.16,3.5919]
[1723813307529,6.1,139.2,139.11,3.58662218]
[1723813307730,0.05210428,139.19,139.17,0.05265914]
[1723813308248,0.05210428,139.19,139.13,51.7]
[1723813308529,0.05210428,139.19,139.17,0.05339524]
[1723813308753,0.05210428,139.19,139.18,3.5916]
[1723813308933,6.1,139.25,139.17,51.75339524]
[1723813309238,7.18516047,139.28,139.23,3.5901]
[1723813309436,3.59596047,139.28,139.21,51.7]
[1723813309626,3.5889,139.29,139.23,3.5901]
[1723813309827,3.61858787,139.29,139.21,51.7]
[1723813310137,57.8,139.32,139.2,6.1]
[1723813310333,0.04465057,139.26,139.24,0.04710513]
[1723813310841,3.5891,139.28,139.24,0.04710513]
[1723813311332,0.04465057,139.26,139.24,0.04710513]
[1723813312040,0.04465057,139.26,139.24,3.63710513]
[1723813312234,0.04465057,139.26,139.24,0.04710513]
[1723813313634,3.63435057,139.26,139.24,0.04710513]
[1723813314431,0.04465057,139.26,139.24,0.04710513]
[1723813318145,0.04465057,139.26,139.24,3.63700513]
[1723813318539,0.04465057,139.26,139.24,0.04710513]
[1723813318843,0.04465057,139.26,139.25,3.5898]
[1723813320235,3.53888489,139.33,139.22,51.7]
[1723813320444,58.98,139.34,139.22,51.7]
[1723813320743,3.5884,139.31,139.25,3.5897]
[1723813320943,3.67738328,139.32,139.22,51.7]
[1723813321136,58.98,139.34,139.22,51.7]
[1723813321338,58.98,139.34,139.26,0.04927175]
[1723813321636,62.61145635,139.34,139.26,0.04927175]
[1723813322041,7.28,139.34,139.26,0.04927175]
[1723813322233,6.1,139.34,139.26,0.04927175]
[1723813322633,9.6876,139.34,139.29,3.5886]
[1723813323337,9.6876,139.34,139.3,3.5885]
[1723813323579,9.6876,139.34,139.26,1.2584]
[1723813323580,51.7,139.39,139.27,55.24508469]
[1723813323739,6.1,139.38,139.27,53.0284]
[1723813323940,2.5411,139.4,139.3,0.04770102]
[1723813324448,75.10219152,139.41,139.32,51.7]
[1723813324739,75.06219152,139.41,139.34,51.7]
[1723813324939,70.06219152,139.41,139.36,3.5869]
[1723813325142,70.06219152,139.41,139.35,0.04646952]
[1723813325444,3.585,139.44,139.39,3.5861]
[1723813325740,7.3998,139.47,139.36,53.0193]
[1723813325937,3.5861,139.4,139.35,6.14646952]
[1723813326137,51.7,139.41,139.3,6.1]
[1723813326339,51.7,139.41,139.29,51.7]
[1723813326645,51.7,139.41,139.29,57.8]
[1723813326843,51.7,139.41,139.36,0.05248976]
[1723813327044,3.5862,139.39,139.36,0.05248976]
[1723813327440,51.7,139.41,139.36,0.05248976]
[1723813328045,6.1,139.42,139.36,0.05248976]
[1723813328245,58.9784,139.46,139.36,0.05248976]
[1723813328545,7.2784,139.46,139.36,0.05248976]
[1723813328842,3.5848,139.45,139.36,0.05248976]
[1723813329049,3.5848,139.45,139.36,1.3371]
[1723813329237,3.5846,139.46,139.39,0.05342246]
[1723813329841,7.3998,139.47,139.39,0.05342246]
[1723813330350,7.3998,139.47,139.41,3.5855]
[1723813331045,7.3998,139.47,139.4,3.5858]
[1723813331243,7.3998,139.47,139.43,0.04743481]
[1723813331439,51.7,139.44,139.3,57.8]
[1723813331645,1.1774,139.43,139.3,55.24121229]
[1723813331845,51.7,139.41,139.3,55.24121229]
[1723813332046,51.7,139.41,139.34,3.5874]
[1723813332249,51.7,139.41,139.3,55.24121229]
[1723813332448,3.5859,139.41,139.3,55.24121229]
[1723813332749,0.04743481,139.37,139.35,3.587]
[1723813332942,0.04743481,139.37,139.34,0.04869051]
[1723813333241,51.7,139.41,139.33,3.5877]
[1723813333456,0.04743481,139.37,139.34,0.04952954]
[1723813333947,0.04743481,139.37,139.36,3.5869]
[1723813334742,51.7,139.46,139.38,3.5864]
[1723813335044,57.8,139.46,139.38,3.5864]
[1723813335257,3.5849,139.44,139.39,3.586]
[1723813335551,6.1,139.46,139.35,52.9925]
[1723813335742,3.5847,139.45,139.35,52.9925]
[1723813336339,9.6844,139.46,139.39,0.05031167]
[1723813336541,6.1,139.46,139.39,0.05031167]
[1723813336745,3.5853,139.43,139.39,0.05031167]
[1723813337446,6.1,139.46,139.39,0.05031167]
[1723813337646,1.1774,139.49,139.39,51.75031167]
[1723813337853,51.7,139.48,139.35,59.0925]
[1723813338050,51.7,139.48,139.35,62.60421334]
[1723813338247,1.1774,139.49,139.43,0.04979102]
[1723813338248,51.7,139.46,139.43,0.04979102]
[1723813338453,9.75978252,139.45,139.35,52.9925]
[1723813338653,6.1,139.45,139.35,52.9925]
[1723813339050,9.6847,139.45,139.35,52.9925]
[1723813339259,6.1,139.45,139.37,51.7]
[1723813339553,3.60743845,139.48,139.37,51.7]
[1723813339756,3.60743845,139.48,139.4,0.05417975]
[1723813339757,0.04979102,139.42,139.4,0.05417975]
[1723813340051,3.5244,139.46,139.4,0.05417975]
[1723813340257,3.5843,139.47,139.41,3.5856]
[1723813340562,6.1,139.49,139.4,55.28136778]
[1723813340863,0.04979102,139.45,139.43,3.63474125]
[1723813341750,0.04979102,139.45,139.44,3.5849]
[1723813342052,0.04979102,139.45,139.43,0.04974125]
[1723813344859,3.5849,139.44,139.43,0.04974125]
[1723813345060,0.04979102,139.45,139.43,0.04974125]
[1723813346865,3.5849,139.44,139.43,0.04974125]
[1723813347463,0.04979102,139.45,139.43,0.04974125]
[1723813349267,0.04979102,139.45,139.43,3.63474125]
[1723813349459,0.04979102,139.45,139.43,0.04974125]
[1723813350259,0.04979102,139.45,139.44,3.5849]
[1723813351569,0.04979102,139.45,139.43,1.38584125]
[1723813352564,0.04979102,139.45,139.43,0.04974125]
[1723813354763,3.63459102,139.45,139.43,0.04974125]
[1723813356768,0.04979102,139.45,139.43,0.04974125]
[1723813357758,3.63459102,139.45,139.43,0.04974125]
[1723813358171,3.63459102,139.45,139.41,3.5854]
[1723813358672,0.04979102,139.45,139.38,43.0]
[1723813358864,0.04979102,139.45,139.42,3.5853]